bitfinex/quotes_SOLUSD_20220228
["timestamp","ask_amount","ask_price","bid_price","bid_amount"]
[1646049783707,1.87880388,90.518,90.416,6.0]
[1646049784805,66.45,90.515,90.416,6.0]
[1646049785004,1.88632603,90.514,90.415,50.90351821]
[1646049785206,1.88632603,90.514,90.416,6.0]
[1646049786007,1.88632603,90.514,90.415,50.90351821]
[1646049786407,110.7,90.504,90.416,6.0]
[1646049786607,66.45,90.505,90.416,6.0]
[1646049786608,110.7,90.499,90.416,6.0]
[1646049786809,1.87056575,90.498,90.415,50.90351821]
[1646049787213,112.68260338,90.496,90.415,50.90351821]
[1646049787415,2.33308139,90.495,90.415,50.90351821]
[1646049787812,110.7,90.494,90.415,50.90351821]
[1646049788012,2.22540161,90.493,90.415,50.90351821]
[1646049788212,66.45,90.491,90.382,27.54463733]
[1646049788415,110.7,90.479,90.36,15.87]
[1646049788613,2.08993001,90.478,90.374,27.54463733]
[1646049789014,110.7,90.477,90.374,27.54463733]
[1646049789214,110.7,90.477,90.359,2.74678921]
[1646049789215,177.15,90.465,90.379,57.93258945]
[1646049789414,2.17405384,90.462,90.379,57.93258945]
[1646049789614,126.57,90.46,90.379,57.93258945]
[1646049790015,2.35095025,90.459,90.379,57.93258945]
[1646049794940,2.35095025,90.459,90.379,72.49104598]
[1646049795941,2.35095025,90.459,90.38,6.0]
[1646049796340,2.35095025,90.459,90.38,14.55845653]
[1646049798044,2.35095025,90.459,90.38,30.42845653]
[1646049798245,22.716,90.464,90.38,30.42845653]
[1646049798446,22.716,90.464,90.38,53.59469868]
[1646049798648,24.61388401,90.464,90.38,53.59469868]
[1646049799049,24.61388401,90.464,90.381,26.85130399]
[1646049799246,24.61388401,90.464,90.381,29.5980932]
[1646049799450,2.29246009,90.464,90.382,14.55845653]
[1646049799647,2.29246009,90.464,90.382,44.15654973]
[1646049799848,1.83075075,90.478,90.383,52.76433535]
[1646049800047,1.83075075,90.478,90.383,67.32279188]
[1646049800248,1.83075075,90.478,90.384,52.76433535]
[1646049800450,1.83075075,90.478,90.385,6.0]
[1646049800649,1.83075075,90.478,90.4,15.87]
[1646049800853,1.83075075,90.478,90.401,58.73192879]
[1646049801652,2.33364639,90.483,90.401,58.73192879]
[1646049803853,1.91745006,90.481,90.401,58.73192879]
[1646049806255,24.4627,90.482,90.402,52.76433535]
[1646049806455,2.16273442,90.481,90.403,6.0]
[1646049806655,2.16273442,90.481,90.403,56.01754614]
[1646049807059,2.16273442,90.481,90.404,23.16624215]
[1646049807258,2.16273442,90.481,90.405,6.0]
[1646049807456,2.16273442,90.481,90.41,15.87]
[1646049810864,2.16273442,90.481,90.401,58.73192879]
[1646049813072,2.16273442,90.481,90.402,137.55130399]
[1646049813273,2.16273442,90.481,90.404,110.7]
[1646049813474,1.92928794,90.511,90.406,110.7]
[1646049813673,1.92928794,90.511,90.411,110.7]
[1646049813874,1.92928794,90.511,90.413,110.7]
[1646049814172,1.92928794,90.511,90.412,29.5980932]
[1646049814373,1.92928794,90.511,90.414,29.5980932]
[1646049814576,1.97025904,90.518,90.416,166.70967949]
[1646049814772,1.97025904,90.518,90.431,110.7]
[1646049814973,1.97025904,90.518,90.432,64.31144086]
[1646049815172,1.97025904,90.518,90.433,110.7]
[1646049815374,1.97025904,90.518,90.434,6.0]
[1646049815575,1.8739882,90.548,90.435,110.7]
[1646049815778,4.421,90.579,90.441,110.7]
[1646049815779,2.14396093,90.579,90.441,110.7]
[1646049815977,47.77636093,90.579,90.461,110.7]
[1646049816175,2.18141814,90.578,90.471,110.7]
[1646049816378,2.18141814,90.578,90.475,110.7]
[1646049816576,2.18141814,90.578,90.477,110.7]
[1646049816776,2.18141814,90.578,90.491,54.61920237]
[1646049816978,2.18141814,90.578,90.492,6.0]
[1646049817177,2.18141814,90.578,90.491,60.52920237]
[1646049817178,110.7,90.578,90.491,54.61920237]
[1646049817376,2.10860393,90.577,90.491,54.61920237]
[1646049820200,2.10860393,90.577,90.491,87.5027932]
[1646049820396,2.10860393,90.577,90.492,6.0]
[1646049820596,2.10860393,90.577,90.492,14.04]
[1646049820796,2.10860393,90.577,90.493,32.88359083]
[1646049821201,2.10860393,90.577,90.494,6.0]
[1646049821400,2.10860393,90.577,90.495,110.7]
[1646049821599,2.10860393,90.577,90.496,6.0]
[1646049821799,2.10860393,90.577,90.496,38.88359083]
[1646049822201,2.10860393,90.577,90.496,32.88359083]
[1646049822402,2.10860393,90.577,90.491,54.61920237]
[1646049822600,2.10860393,90.577,90.492,6.0]
[1646049823100,2.10860393,90.577,90.492,38.88359083]
[1646049823503,2.10860393,90.577,90.492,32.88359083]
[1646049824201,2.10860393,90.577,90.492,61.76722816]
[1646049824800,2.10860393,90.577,90.493,6.0]
[1646049825201,2.10860393,90.577,90.494,32.88359083]
[1646049825800,2.10860393,90.577,90.495,6.0]
[1646049826000,2.10860393,90.577,90.5,15.87]
[1646049826401,2.10860393,90.577,90.501,38.88359083]
[1646049826799,2.10860393,90.577,90.502,32.88359083]
[1646049827007,2.10860393,90.577,90.503,6.0]
[1646049827603,2.10860393,90.577,90.505,55.48646441]
[1646049828504,2.10860393,90.577,90.506,32.88359083]
[1646049831803,2.10860393,90.577,90.507,6.0]
[1646049832204,2.10860393,90.577,90.508,32.88359083]
[1646049833807,2.10860393,90.577,90.505,55.48646441]
[1646049834407,2.10860393,90.577,90.505,88.37005524]
[1646049841415,2.10860393,90.577,90.506,6.0]
[1646049841913,2.10860393,90.577,90.507,32.88359083]
[1646049842114,2.10860393,90.577,90.508,6.0]
[1646049842515,2.10860393,90.577,90.509,32.88359083]
[1646049842815,2.10860393,90.577,90.51,6.0]
[1646049843017,2.10860393,90.577,90.51,24.61678921]
[1646049843215,2.10860393,90.577,90.511,35.63038004]
[1646049843416,2.10860393,90.577,90.512,6.0]
[1646049843615,2.10860393,90.577,90.511,35.63038004]
[1646049844015,2.10860393,90.577,90.512,32.88359083]
[1646049845717,2.10860393,90.577,90.51,15.87]
[1646049846118,2.10860393,90.577,90.505,55.48646441]
[1646049846318,2.10860393,90.577,90.51,32.88359083]
[1646049848524,2.10860393,90.577,90.49,2.74678921]
[1646049848525,2.10860393,90.577,90.495,32.88359083]
[1646049848923,2.10860393,90.577,90.482,32.88359083]
[1646049849324,2.10860393,90.577,90.488,50.05360128]
[1646049850225,2.10860393,90.577,90.502,47.28550185]
[1646049850427,2.10860393,90.577,90.502,80.16909268]
[1646049850625,2.10860393,90.577,90.502,32.88359083]
[1646049850827,2.10860393,90.577,90.503,32.88359083]
[1646049854931,2.10860393,90.577,90.504,28.88363733]
[1646049855131,2.10860393,90.577,90.51,15.87]
[1646049855731,2.10860393,90.577,90.511,32.88359083]
[1646049856331,45.6324,90.579,90.512,113.44678921]
[1646049856532,1.82232267,90.598,90.512,119.44678921]
[1646049856832,1.81643591,90.627,90.515,48.75485522]
[1646049857033,1.81643591,90.627,90.532,55.641878]
[1646049857231,1.81643591,90.627,90.533,110.7]
[1646049857432,1.81643591,90.627,90.535,110.7]
[1646049857631,1.81643591,90.627,90.537,110.7]
[1646049857831,1.81643591,90.627,90.55,15.87]
[1646049858031,1.81643591,90.627,90.551,167.8245128]
[1646049858231,97.4361,90.653,90.551,167.8245128]
[1646049858232,1.82448504,90.652,90.551,205.20815013]
[1646049858432,2.29688104,90.65,90.553,110.7]
[1646049858834,4.414,90.698,90.555,110.7]
[1646049859032,46.5857,90.698,90.561,110.7]
[1646049859233,1.8623636,90.697,90.572,44.43489675]
[1646049859433,1.8623636,90.697,90.591,110.7]
[1646049859633,1.8623636,90.697,90.601,110.7]
[1646049859831,1.8623636,90.697,90.6,15.87]
[1646049860031,1.8623636,90.697,90.602,2.74678921]
[1646049860232,110.7,90.697,90.602,2.74678921]
[1646049860430,110.7,90.697,90.6,15.87]
[1646049860433,177.15,90.695,90.6,16.6067]
[1646049860631,177.15,90.693,90.6,16.6067]
[1646049860834,177.15,90.691,90.6,16.6067]
[1646049861032,66.45,90.689,90.601,2.74678921]
[1646049861234,1.80190078,90.688,90.6,16.6067]
[1646049861633,22.5598,90.687,90.6,16.6067]
[1646049861931,1.86613032,90.685,90.601,2.74678921]
[1646049862532,1.86613032,90.685,90.602,31.76250122]
[1646049862932,1.86613032,90.685,90.602,34.50929043]
[1646049864232,1.86613032,90.685,90.603,6.0]
[1646049864633,1.86613032,90.685,90.603,8.74678921]
[1646049868336,1.86613032,90.685,90.604,31.76250122]
[1646049868536,1.86613032,90.685,90.606,53.50598149]
[1646049868740,1.86613032,90.685,90.61,15.87]
[1646049868937,1.86613032,90.685,90.611,6.0]
[1646049869136,1.86613032,90.685,90.611,33.76250122]
[1646049869336,1.86613032,90.685,90.612,4.412]
[1646049869538,1.86613032,90.685,90.612,36.17450122]
[1646049869736,1.86613032,90.685,90.613,31.76250122]
[1646049869936,1.86613032,90.685,90.614,4.412]
[1646049870139,1.86613032,90.685,90.614,117.85878921]
[1646049870338,1.86613032,90.685,90.616,110.7]
[1646049870539,1.86613032,90.685,90.631,54.15366657]
[1646049870738,1.86613032,90.685,90.631,61.86366657]
[1646049871241,1.86613032,90.685,90.632,2.74678921]
[1646049871441,22.5598,90.687,90.633,6.0]
[1646049871638,2.44299287,90.697,90.634,4.412]
[1646049871838,2.44299287,90.697,90.635,6.0]
[1646049872041,2.44299287,90.697,90.64,15.87]
[1646049872239,2.44299287,90.697,90.641,6.0]
[1646049872839,2.44299287,90.697,90.642,2.74678921]
[1646049873039,2.44299287,90.697,90.643,6.0]
[1646049873439,84.0899,90.745,90.644,143.45750461]
[1646049873440,1.95076361,90.729,90.644,143.45750461]
[1646049873638,47.4824,90.744,90.646,110.7]
[1646049873842,1.99900179,90.743,90.66,15.87]
[1646049874039,1.99900179,90.743,90.661,47.51146156]
[1646049874239,1.99900179,90.743,90.662,6.0]
[1646049874440,1.99900179,90.743,90.663,4.41]
[1646049874641,1.99900179,90.743,90.664,6.0]
[1646049875440,1.99900179,90.743,90.662,6.0]
[1646049875640,1.99900179,90.743,90.66,32.5495]
[1646049875862,1.84589196,90.742,90.66,15.87]
[1646049876061,1.84589196,90.742,90.603,23.2401]
[1646049876062,4.41,90.741,90.64,15.87]
[1646049876261,1.84589196,90.742,90.64,15.87]
[1646049876662,66.45,90.735,90.641,52.88339666]
[1646049876861,2.456767,90.734,90.641,52.88339666]
[1646049877061,2.456767,90.734,90.641,82.89411206]
[1646049877261,2.456767,90.734,90.642,30.0107154]
[1646049877462,47.4824,90.744,90.642,64.36706184]
[1646049877664,177.15,90.743,90.643,2.74678921]
[1646049877963,2.2476691,90.742,90.643,64.36706184]
[1646049878163,2.2476691,90.742,90.644,61.62027263]
[1646049878363,2.2476691,90.742,90.645,6.0]
[1646049878564,2.2476691,90.742,90.645,67.62027263]
[1646049878763,2.2476691,90.742,90.646,30.0107154]
[1646049878964,2.2476691,90.742,90.65,15.87]
[1646049879362,2.2476691,90.742,90.651,37.60955723]
[1646049879563,2.2476691,90.742,90.651,40.35634644]
[1646049879763,2.2476691,90.742,90.652,31.60955723]
[1646049879964,2.2476691,90.742,90.653,10.41]
[1646049880166,2.2476691,90.742,90.653,21.29678921]
[1646049880365,2.2476691,90.742,90.654,31.60955723]
[1646049880566,2.2476691,90.742,90.656,58.52269529]
[1646049880866,2.2476691,90.742,90.67,68.06043335]
[1646049881065,2.2476691,90.742,90.657,2.74678921]
[1646049881469,2.2476691,90.742,90.647,2.74678921]
[1646049882065,2.2476691,90.742,90.648,56.95997115]
[1646049882469,2.2476691,90.742,90.648,59.70676036]
[1646049883270,2.2476691,90.742,90.649,31.60955723]
[1646049883472,2.2476691,90.742,90.65,15.87]
[1646049883671,2.2476691,90.742,90.65,18.61678921]
[1646049883872,2.2476691,90.742,90.651,2.74678921]
[1646049884077,2.2476691,90.742,90.651,34.35634644]
[1646049884473,2.2476691,90.742,90.652,34.35634644]
[1646049884873,2.2476691,90.742,90.653,34.35634644]
[1646049885272,2.2476691,90.742,90.654,38.76634644]
[1646049885673,2.2476691,90.742,90.656,110.7]
[1646049885873,2.2476691,90.742,90.67,15.87]
[1646049886073,2.2476691,90.742,90.671,53.96420447]
[1646049886272,2.2476691,90.742,90.671,56.71099368]
[1646049886472,2.2476691,90.742,90.672,6.0]
[1646049886678,2.2476691,90.742,90.672,8.74678921]
[1646049886973,2.2476691,90.742,90.673,2.74678921]
[1646049890183,1.2476691,90.742,90.673,2.74678921]
[1646049890985,1.2476691,90.742,90.65,2.74678921]
[1646049891183,1.2476691,90.742,90.655,51.68295994]
[1646049893982,1.2476691,90.742,90.65,2.74678921]
[1646049894183,1.97413751,90.734,90.64,7.15678921]
[1646049894383,1.97413751,90.734,90.64,2.74678921]
[1646049894784,1.64213007,90.728,90.64,2.74678921]
[1646049895082,1.64213007,90.728,90.643,49.87982088]
[1646049895283,112.75993962,90.727,90.643,49.87982088]
[1646049895484,1.90531544,90.726,90.643,49.87982088]
[1646049897585,1.90531544,90.726,90.647,31.4362239]
[1646049899486,1.90531544,90.726,90.643,49.87982088]
[1646049899487,1.90531544,90.726,90.655,32.75750461]
[1646049899690,1.90531544,90.726,90.655,64.19372851]
[1646049899889,23.109,90.728,90.66,15.87]
[1646049900290,2.02636409,90.727,90.661,2.74678921]
[1646049900589,1.9755267,90.743,90.661,64.19372851]
[1646049900790,23.207,90.743,90.662,31.4362239]
[1646049900991,1.89020429,90.742,90.663,6.0]
[1646049901191,1.89020429,90.742,90.663,8.74678921]
[1646049901495,1.89020429,90.742,90.664,34.18301311]
[1646049901694,1.89020429,90.742,90.665,6.0]
[1646049901891,1.89020429,90.742,90.67,15.87]
[1646049902090,1.89020429,90.742,90.671,64.35019966]
[1646049902491,1.89020429,90.742,90.671,67.09698887]
[1646049902794,24.558,90.783,90.672,113.44678921]
[1646049902992,2.00003907,90.78,90.674,110.7]
[1646049903192,2.00003907,90.78,90.676,110.7]
[1646049903391,2.00003907,90.78,90.691,110.7]
[1646049903592,2.00003907,90.78,90.693,110.7]
[1646049903894,1.97590619,90.797,90.7,15.87]
[1646049904191,2.05044745,90.796,90.7,15.87]
[1646049904393,2.05044745,90.796,90.701,2.74678921]
[1646049904796,66.45,90.796,90.701,2.74678921]
[1646049904993,2.13546745,90.795,90.701,2.74678921]
[1646049905794,2.13546745,90.795,90.702,31.4362239]
[1646049905995,2.13546745,90.795,90.701,2.74678921]
[1646049906195,2.13546745,90.795,90.7,15.87]
[1646049907597,2.13546745,90.795,90.701,6.0]
[1646049907997,2.13546745,90.795,90.702,2.74678921]
[1646049908198,2.13546745,90.795,90.703,6.0]
[1646049908398,2.13546745,90.795,90.703,34.50372891]
[1646049908599,2.13546745,90.795,90.704,2.74678921]
[1646049908798,2.13546745,90.795,90.706,45.51551662]
[1646049909001,2.13546745,90.795,90.71,15.87]
[1646049909400,2.13546745,90.795,90.711,31.25051812]
[1646049910002,2.13546745,90.795,90.712,2.74678921]
[1646049910201,2.13546745,90.795,90.71,15.87]
[1646049910399,112.83546745,90.795,90.706,45.51551662]
[1646049910599,1.62919602,90.794,90.706,45.51551662]
[1646049910801,4.37598523,90.794,90.706,45.51551662]
[1646049911000,1.62919602,90.794,90.706,45.51551662]
[1646049914002,1.62919602,90.794,90.694,2.74678921]
[1646049914302,66.45,90.786,90.694,2.74678921]
[1646049914502,110.7,90.775,90.678,28.50372891]
[1646049914702,66.45,90.776,90.678,28.50372891]
[1646049914703,25.67479114,90.774,90.681,2.74678921]
[1646049914902,1.83160521,90.773,90.681,2.74678921]
[1646049915102,1.83160521,90.773,90.682,55.48700035]
[1646049915502,112.53160521,90.773,90.682,55.48700035]
[1646049915708,2.13865868,90.772,90.683,2.74678921]
[1646049916203,2.13865868,90.772,90.684,28.50372891]
[1646049916605,2.13865868,90.772,90.684,31.25051812]
[1646049918104,110.7,90.761,90.669,28.50372891]
[1646049918304,110.7,90.747,90.669,28.50372891]
[1646049918505,110.7,90.745,90.645,2.74678921]
[1646049918806,2.11031098,90.744,90.645,2.74678921]
[1646049919206,2.11031098,90.744,90.655,42.92539566]
[1646049919806,2.11031098,90.744,90.655,71.42912457]
[1646049924208,66.45,90.742,90.655,28.50372891]
[1646049924407,110.7,90.726,90.645,2.74678921]
[1646049924607,110.7,90.724,90.645,2.74678921]
[1646049924807,2.22903024,90.723,90.645,2.74678921]
[1646049925008,110.7,90.722,90.632,16.698]
[1646049925207,1.91561462,90.721,90.629,49.73045796]
[1646049925407,110.7,90.704,90.62,28.50372891]
[1646049925607,1.67660105,90.703,90.62,28.50372891]
[1646049926510,1.67660105,90.703,90.621,55.40344843]
[1646049926808,1.67660105,90.703,90.622,28.40770224]
[1646049928413,1.67660105,90.703,90.623,27.21110201]
[1646049928810,1.67660105,90.703,90.624,31.15449145]
[1646049929210,1.67660105,90.703,90.625,31.15449145]
[1646049929611,1.67660105,90.703,90.626,31.15449145]
[1646049930012,1.67660105,90.703,90.627,28.40770224]
[1646049930212,1.67660105,90.703,90.627,31.15449145]
[1646049930414,1.67660105,90.703,90.628,2.74678921]
[1646049930614,1.67660105,90.703,90.628,31.15449145]
[1646049930817,1.67660105,90.703,90.629,28.40770224]
[1646049931018,1.67660105,90.703,90.629,31.15449145]
[1646049931316,1.67660105,90.703,90.63,28.40770224]
[1646049931919,112.37660105,90.703,90.63,28.40770224]
[1646049932136,1.87075744,90.702,90.63,28.40770224]
[1646049932538,1.87075744,90.702,90.621,55.40344843]
[1646049932937,1.87075744,90.702,90.622,28.40770224]
[1646049933539,1.87075744,90.702,90.622,55.61880425]
[1646049933938,1.87075744,90.702,90.623,28.40770224]
[1646049946651,1.87075744,90.702,90.623,27.40770224]
[1646049947452,66.45,90.694,90.621,55.40344843]
[1646049947651,177.15,90.685,90.621,55.40344843]
[1646049947851,1.62991456,90.684,90.621,55.40344843]
[1646049950353,1.62991456,90.684,90.604,16.5597]
[1646049950555,1.62991456,90.684,90.594,2.74678921]
[1646049950953,1.62991456,90.684,90.594,19.02438921]
[1646049951353,1.62991456,90.684,90.595,56.41363523]
[1646049951754,1.62991456,90.684,90.596,2.74678921]
[1646049952956,1.62991456,90.684,90.597,30.13236891]
[1646049953357,1.62991456,90.684,90.597,61.9449268]
[1646049953557,1.62991456,90.684,90.598,29.06576868]
[1646049953757,1.62991456,90.684,90.598,59.19813759]
[1646049953958,1.62991456,90.684,90.599,30.13236891]
[1646049954359,112.32991456,90.684,90.599,30.13236891]
[1646049954558,47.4832,90.693,90.599,30.13236891]
[1646049954559,2.13820576,90.683,90.6,2.74678921]
[1646049954760,2.03396945,90.692,90.6,2.74678921]
[1646049955562,2.05176556,90.691,90.6,2.74678921]
[1646049957464,2.05176556,90.691,90.599,30.13236891]
[1646049957864,2.05176556,90.691,90.6,30.13236891]
[1646049958663,2.05176556,90.691,90.601,29.06576868]
[1646049958962,2.05176556,90.691,90.602,30.13236891]
[1646049959564,110.7,90.689,90.602,30.13236891]
[1646049959765,1.67968413,90.688,90.602,30.13236891]
[1646049962666,4.412,90.712,90.602,30.13236891]
[1646049962667,28.81271552,90.799,90.609,110.7]
[1646049962863,28.81271552,90.799,90.688,1.67968413]
[1646049963065,4.54159191,90.866,90.726,28.79956661]
[1646049963266,4.405,90.865,90.73,15.87]
[1646049963463,4.405,90.865,90.732,2.30821206]
[1646049963664,1.37249173,90.866,90.734,110.7]
[1646049963865,1.37249173,90.866,90.736,110.7]
[1646049964065,1.37249173,90.866,90.75,15.87]
[1646049964264,1.37249173,90.866,90.76,15.87]
[1646049964265,4.404,90.865,90.76,15.87]
[1646049964867,4.404,90.865,90.76,214.19]
[1646049965065,4.404,90.865,90.761,34.78621441]
[1646049965268,1.37249173,90.866,90.761,43.20621441]
[1646049965666,1.37249173,90.866,90.762,40.78621441]
[1646049966066,1.37249173,90.866,90.763,56.15293106]
[1646049966267,1.37249173,90.866,90.764,6.0]
[1646049966467,1.37249173,90.866,90.77,198.32]
[1646049966668,1.37249173,90.866,90.781,48.79318631]
[1646049966868,146.9876,90.871,90.79,214.19]
[1646049967069,146.9876,90.871,90.79,15.87]
[1646049967268,146.9876,90.871,90.801,54.49487248]
[1646049967467,146.9876,90.871,90.81,15.87]
[1646049967870,72.6287,90.871,90.81,15.87]
[1646049968477,73.8655,90.926,90.82,198.32]
[1646049968669,1.7705253,90.917,90.83,214.19]
[1646049968870,72.2476,90.925,90.83,15.87]
[1646049968871,1.82435736,90.924,90.83,15.87]
[1646049969070,72.2476,90.925,90.85,198.32]
[1646049969271,72.2476,90.925,90.86,15.87]
[1646049969471,72.2476,90.925,90.86,214.19]
[1646049969672,4.4,90.961,90.86,214.19]
[1646049969874,2.74678921,90.961,90.86,15.87]
[1646049970171,4.399,90.96,90.86,15.87]
[1646049970572,2.74678921,90.959,90.86,15.87]
[1646049970774,4.399,90.958,90.86,15.87]
[1646049971173,110.7,90.955,90.86,15.87]
[1646049971374,1.59664694,90.952,90.86,15.87]
[1646049971573,4.4,90.951,90.86,15.87]
[1646049971973,1.5527794,90.949,90.86,15.87]
[1646049972172,4.4,90.948,90.86,15.87]
[1646049972473,110.7,90.947,90.86,15.87]
[1646049972673,177.15,90.945,90.86,15.87]
[1646049972877,177.15,90.943,90.86,15.87]
[1646049973074,177.15,90.941,90.86,15.87]
[1646049973302,4.4,90.94,90.86,15.87]
[1646049973474,66.45,90.926,90.81,214.483]
[1646049973676,177.15,90.903,90.82,15.87]
[1646049973873,4.402,90.902,90.757,4.402]
[1646049974073,110.7,90.873,90.771,53.41554856]
[1646049974274,1.35846112,90.872,90.771,53.41554856]
[1646049974976,1.84405564,90.978,90.883,40.05950618]
[1646049975174,79.9599,90.96,90.883,40.05950618]
[1646049975376,40.0,90.957,90.831,3.03321798]
[1646049975573,66.45,90.953,90.83,15.87]
[1646049975776,110.7,90.938,90.81,15.87]
[1646049976075,110.7,90.916,90.79,15.87]
[1646049976275,1.75066199,90.881,90.774,3.862703]
[1646049976475,1.65975322,90.879,90.774,3.862703]
[1646049976675,4.404,90.878,90.774,3.862703]
[1646049977075,1.573497,90.875,90.774,3.862703]
[1646049977275,4.404,90.874,90.76,15.87]
[1646049977476,66.45,90.87,90.76,15.87]
[1646049977677,110.7,90.859,90.76,15.87]
[1646049977880,1.44498842,90.845,90.757,4.402]
[1646049978077,66.45,90.844,90.757,4.402]
[1646049978276,112.25066782,90.843,90.757,4.402]
[1646049978477,66.45,90.822,90.757,4.402]
[1646049978678,15.87,90.86,90.757,4.402]
[1646049978679,110.7,90.815,90.757,4.402]
[1646049978880,1.42440444,90.857,90.757,4.402]
[1646049980280,4.404,90.856,90.757,4.402]
[1646049980483,1.42440444,90.857,90.758,6.0]
[1646049980881,1.42440444,90.857,90.758,8.74678921]
[1646049981080,1.42440444,90.857,90.759,2.74678921]
[1646049981280,1.42440444,90.857,90.76,6.0]
[1646049981882,1.42440444,90.857,90.758,6.0]
[1646049982081,1.42440444,90.857,90.76,15.87]
[1646049982280,1.42440444,90.857,90.761,8.49995708]
[1646049983380,103.4696,90.859,90.762,2.74678921]
[1646049983581,110.7,90.876,90.763,6.0]
[1646049983781,22.8087,90.877,90.763,8.75069611]
[1646049983981,22.8087,90.877,90.764,2.74678921]
[1646049984181,22.8087,90.877,90.765,6.0]
[1646049984384,22.7074,90.9,90.78,15.87]
[1646049984581,22.7074,90.9,90.784,110.7]
[1646049984782,24.9983,90.918,90.785,2.49547342]
[1646049984983,24.9983,90.918,90.791,2.90742805]
[1646049985187,26.55383646,90.918,90.8,15.87]
[1646049985384,26.55383646,90.918,90.801,61.03850804]
[1646049985585,66.45,90.917,90.802,2.81843156]
[1646049985887,1.7857091,90.916,90.802,5.56522077]
[1646049986086,66.45,90.915,90.803,2.74678921]
[1646049986285,1.47217653,90.914,90.803,2.74678921]
[1646049986485,110.7,90.908,90.8,15.87]
[1646049986685,110.7,90.882,90.8,15.87]
[1646049986885,177.15,90.876,90.8,15.87]
[1646049988303,1.74549334,90.883,90.8,15.87]
[1646049988505,66.45,90.905,90.801,2.57137198]
[1646049988705,24.4508,90.904,90.802,6.0]
[1646049988903,24.4508,90.904,90.802,8.74678921]
[1646049989104,68.01187116,90.903,90.802,8.74678921]
[1646049989303,66.45,90.903,90.803,2.74678921]
[1646049989503,24.4508,90.904,90.804,6.0]
[1646049989704,66.45,90.903,90.804,6.0]
[1646049989906,1.45229341,90.902,90.804,6.0]
[1646049990106,1.45229341,90.902,90.802,6.0]
[1646049990406,110.7,90.902,90.805,2.74678921]
[1646049990606,110.7,90.902,90.82,15.87]
[1646049994009,110.7,90.903,90.82,15.87]
[1646049994213,110.7,90.903,90.821,5.45920762]
[1646049994608,24.4508,90.904,90.821,5.45920762]
[1646049995413,24.4508,90.904,90.822,58.55699487]
[1646049995610,24.4508,90.904,90.823,2.35867046]
[1646049995810,24.4508,90.904,90.823,2.77296984]
[1646049996411,24.4508,90.904,90.83,13.22]
[1646049998813,24.9983,90.918,90.831,5.85121989]
[1646049999010,24.9983,90.918,90.831,2.74678921]
[1646049999212,24.9983,90.918,90.832,2.74678921]
[1646050000212,24.9983,90.918,90.833,6.0]
[1646050000612,24.9983,90.918,90.834,2.74678921]
[1646050000812,24.9983,90.918,90.836,43.27684704]
[1646050001017,24.9983,90.918,90.84,13.22]
[1646050001422,24.9983,90.918,90.841,2.74678921]
[1646050001815,24.9983,90.918,90.841,5.38965462]
[1646050002216,24.9983,90.918,90.842,2.74678921]
[1646050002918,110.7,90.917,90.842,2.74678921]
[1646050004819,123.92,90.96,90.842,2.74678921]
[1646050005020,115.101,90.959,90.842,2.74678921]
[1646050005219,110.7,90.959,90.842,2.74678921]
[1646050006020,110.7,90.962,90.842,2.74678921]
[1646050006620,47.3293,90.963,90.842,2.74678921]
[1646050006821,47.3293,90.963,90.844,110.7]
[1646050007020,1.63543184,90.962,90.845,12.71346439]
[1646050007221,68.08543184,90.962,90.845,9.4602536]
[1646050007420,1.87344775,90.961,90.845,5.0592536]
[1646050007620,0.32088143,90.954,90.846,7.14778921]
[1646050007823,1.60968986,90.954,90.861,48.09129218]
[1646050008520,1.60968986,90.954,90.862,2.74678921]
[1646050010220,1.60968986,90.954,90.862,5.14954939]
[1646050010620,23.0176,90.962,90.863,2.74678921]
[1646050010821,110.7,90.961,90.863,2.74678921]
[1646050011921,1.7109994,90.96,90.863,2.74678921]
[1646050012121,110.7,90.961,90.863,2.74678921]
[1646050012723,110.7,90.961,90.864,4.4]
[1646050013122,110.7,90.961,90.865,2.74678921]
[1646050013326,110.7,90.961,90.866,4.4]
[1646050013525,110.7,90.961,90.88,13.22]
[1646050013724,110.7,90.961,90.881,56.05035387]
[1646050014124,1.45963526,90.96,90.881,56.05035387]